fUST/lending_fUST_20240110
["ID","MTS","AMOUNT","RATE_DAILY","PERIOD"]
[310922365,1704821439253,-676.79171251,0.0002,2]
[310922366,1704821439263,-154.90705577,0.0002,2]
[310922367,1704821439273,-853.38318073,0.0002,2]
[310922368,1704821439283,-236.58553914,0.0002,2]
[310922369,1704821439291,-2993.53442921,0.0002,2]
[310922370,1704821439301,-352.07693534,0.0002,2]
[310922371,1704821439310,-154.90705577,0.0002,2]
[310922372,1704821439318,-1194.83746505,0.0002,2]
[310922373,1704821439328,-151.5247856,0.0002,2]
[310922374,1704821439337,-200.0,0.0002,2]
[310922375,1704821439346,-439.35135649,0.0002,2]
[310922376,1704821439355,-309.76768121,0.0002,2]
[310922377,1704821439364,-155.06991526,0.0002,2]
[310922378,1704821439373,-668.43081867,0.0002,2]
[310922379,1704821439382,-1540.13529,0.0002,2]
[310922380,1704821439392,-1540.13529,0.0002,2]
[310922381,1704821439403,-1540.13529,0.0002,2]
[310922382,1704821439413,-1540.13529,0.0002,2]
[310922383,1704821439422,-1540.13529,0.0002,2]
[310922384,1704821439431,-285.00006318,0.00020973,2]
[310922385,1704821439440,-326.6549607,0.00021,2]
[310922386,1704821439449,-166.666666,0.00021918,2]
[310922387,1704821439458,-292.76629846,0.00022,4]
[310922388,1704821439467,-4916.51301772,0.00022,2]
[310922389,1704821439477,-156.82833971,0.00022,2]
[310922390,1704821439486,-3927.64829251,0.00022,2]
[310922391,1704821439495,-166.666666,0.00022431,2]
[310922392,1704821439504,-166.666666,0.00022944,2]
[310922393,1704821439513,-2092.57766549,0.00023,2]
[310922394,1704821439522,-9918.08132345,0.00023,2]
[310922395,1704821439531,-500.0,0.00023288,4]
[310922396,1704821439540,-500.0,0.00023288,4]
[310922397,1704821439549,-503.66856439,0.00023288,4]
[310922398,1704821439559,-413.02675334,0.00023288,4]
[310922399,1704821439568,-500.0,0.00023288,4]
[310922400,1704821439577,-500.0,0.00023288,4]
[310922401,1704821439586,-500.0,0.00023288,4]
[310922402,1704821439595,-165.35852094,0.00023288,4]
[310922403,1704821439604,-500.0,0.00023288,4]
[310922404,1704821439614,-500.0,0.00023288,4]
[310922405,1704821439623,-226.75373857,0.00023288,4]
[310922406,1704821439632,-479.95863358,0.00023288,4]
[310922407,1704821439641,-500.0,0.00023288,4]
[310922408,1704821439653,-500.0,0.00023288,2]
[310922409,1704821439663,-500.0,0.00023288,2]
[310922410,1704821439673,-500.0,0.00023288,2]
[310922411,1704821439682,-465.2729783,0.00023288,2]
[310922412,1704821439691,-500.0,0.00023288,2]
[310922413,1704821439701,-500.0,0.00023288,2]
[310922414,1704821439711,-500.0,0.00023288,2]
[310922415,1704821439721,-323.21185866,0.00023288,2]
[310922416,1704821439732,-601.45366102,0.00023288,2]
[310922417,1704821439742,-647.75915466,0.00023288,2]
[310922418,1704821439752,-500.0,0.00023288,2]
[310922419,1704821439762,-500.0,0.00023288,2]
[310922420,1704821439771,-469.35243039,0.00023288,2]
[310922421,1704821439780,-177.01146571,0.00023288,4]
[310922422,1704821439790,-633.69180792,0.00023288,2]
[310922423,1704821439799,-409.36887206,0.00023288,4]
[310922424,1704821439808,-601.38189088,0.00023288,4]
[310922425,1704821439818,-492.5768181,0.00023288,4]
[310922426,1704821439827,-500.0,0.00023288,4]
[310922427,1704821439836,-500.0,0.00023288,4]
[310922428,1704821439846,-486.63908906,0.00023288,4]
[310922429,1704821439855,-500.0,0.00023288,4]
[310922430,1704821439865,-407.63603085,0.00023288,4]
[310922431,1704821439875,-500.0,0.00023288,4]
[310922432,1704821439886,-500.0,0.00023288,2]
[310922433,1704821439901,-400.96910735,0.00023288,2]
[310922434,1704821439911,-317.83582571,0.00023288,4]
[310922435,1704821439921,-500.0,0.00023288,2]
[310922436,1704821439930,-500.0,0.00023288,2]
[310922437,1704821439941,-382.1412391,0.00023288,2]
[310922438,1704821439950,-500.0,0.00023288,2]
[310922439,1704821439960,-178.10469421,0.00023288,2]
[310922440,1704821439969,-500.0,0.00023288,2]
[310922441,1704821439979,-500.0,0.00023288,2]
[310922442,1704821439990,-465.2729783,0.00023288,2]
[310922444,1704821439999,-243.02658583,0.00023288,4]
[310922446,1704821440008,-253.47672316,0.00023288,2]
[310922448,1704821440017,-163.05441233,0.00023288,4]
[310922450,1704821440027,-276.66831502,0.00023288,2]
[310922452,1704821440036,-500.0,0.00023288,2]
[310922454,1704821440045,-191.67078754,0.00023288,2]
[310922456,1704821440055,-166.666666,0.00023456,2]
[310922458,1704821440064,-166.666666,0.00023969,2]
[310922460,1704821440074,-154.90705577,0.00024,2]
[310922462,1704821440083,-2292.62638427,0.00024,2]
[310922463,1704821440092,-166.666666,0.00024482,2]
[310922465,1704821440102,-297.9387417,0.00024658,2]
[310922467,1704821440111,-613.86507578,0.00025,2]
[310922469,1704821440121,-3000.0,0.00025,2]
[310922471,1704821440131,-154.90705577,0.00025,2]
[310922473,1704821440140,-677.25499859,0.00025,2]
[310922475,1704821440151,-154.90705577,0.00025,2]
[310922477,1704821440160,-4709.99124251,0.00025,2]
[310922479,1704821440169,-1004.42384051,0.00025,2]
[310922481,1704821440179,-154.97101708,0.00025,2]
[310922483,1704821440187,-158.11687985,0.00025098,2]
[310922485,1704821440197,-200.0,0.00025479,2]
[310922487,1704821440206,-158.11687985,0.00025899,2]
[310922489,1704821440215,-978.88032498,0.000259,2]
[310922491,1704821440224,-525.7750246,0.00026,2]
[310922492,1704821440233,-3580.53429443,0.00026,2]
[310922494,1704821440243,-629.08394685,0.000264,2]
[310922496,1704821440252,-158.11687985,0.00026699,2]
[310922498,1704821440261,-496.879336,0.0002698,5]
[310922500,1704821440272,-155.0,0.00027397,2]
[310922502,1704821440281,-14815.72,0.00027397,3]
[310922504,1704821440291,-2000.0,0.000275,2]
[310922506,1704821440300,-158.11687985,0.000275,2]
[310922508,1704821440309,-2000.0,0.0002751,2]
[310922510,1704821440318,-2000.0,0.0002752,2]
[310922512,1704821440327,-2000.0,0.0002753,2]
[310922513,1704821440336,-2000.0,0.0002754,2]
[310922515,1704821440346,-2000.0,0.0002755,2]
[310922517,1704821440355,-2000.0,0.0002756,2]
[310922518,1704821440365,-2000.0,0.0002757,2]
[310922519,1704821440374,-2000.0,0.0002758,2]
[310922520,1704821440384,-2000.0,0.0002759,2]
[310922521,1704821440393,-2000.0,0.000276,2]
[310922522,1704821440403,-222.4958108,0.00027608,2]
[310922523,1704821440412,-2000.0,0.0002761,2]
[310922524,1704821440421,-2000.0,0.0002762,2]
[310922525,1704821440431,-2000.0,0.0002763,2]
[310922526,1704821440440,-2000.0,0.0002764,2]
[310922527,1704821440450,-2000.0,0.0002765,2]
[310922528,1704821440459,-2000.0,0.0002766,2]
[310922529,1704821440469,-2000.0,0.0002767,2]
[310922530,1704821440478,-2000.0,0.0002768,2]
[310922531,1704821440487,-2066.583364,0.0002769,2]
[310922532,1704821440499,-620.45419734,0.0002772,2]
[310922533,1704821440508,-237.51946768,0.00028,2]
[310922534,1704821440517,-154.90705577,0.00028,2]
[310922535,1704821440526,-506.50479394,0.00028,2]
[310922536,1704821440536,-157.76589739,0.0002828,2]
[310922537,1704821440545,-150.0,0.00028614,2]
[310922538,1704821440554,-155.0,0.00028767,2]
[310922539,1704821440563,-783.16983902,0.00029,2]
[310922540,1704821440572,-5000.0,0.00029,3]
[310922541,1704821440581,-1982.4602042,0.00029,2]
[310922542,1704821440591,-150.89437394,0.00029051,30]
[310922543,1704821440601,-620.02270987,0.00029106,2]
[310922545,1704821440609,-150.89437394,0.00029644,7]
[310922547,1704821440619,-525.439294,0.00029953,2]
[310922549,1704821440628,-173.42807975,0.0002998,4]
[310922551,1704821440637,-6971.6600529,0.0003,4]
[310922553,1704821440647,-1200.0,0.0003,4]
[310922555,1704821440656,-2000.0,0.0003,2]
[310922556,1704821440665,-463.25005188,0.0003,4]
[310922557,1704821440674,-154.90705577,0.0003,4]
[310922558,1704821440683,-686.45378424,0.0003,4]
[310922560,1704821440692,-243.63871422,0.0003,4]
[310922562,1704821440701,-185.0,0.0003,2]
[310922564,1704821440710,-2000.0,0.0003001,2]
[310922565,1704821440719,-2000.0,0.0003002,2]
[310922567,1704821440728,-2000.0,0.0003003,2]
[310922569,1704821440737,-2000.0,0.0003004,2]
[310922570,1704821440746,-157.03719731,0.00030041,4]
[310922571,1704821440755,-190.53640211,0.00030041,2]
[310922572,1704821440764,-199.57598445,0.00030042,4]
[310922573,1704821440773,-195.17243971,0.00030042,4]
[310922575,1704821440783,-2000.0,0.0003005,2]
[310922576,1704821440792,-2000.0,0.0003006,2]
[310922577,1704821440801,-175.86346322,0.00030062,4]
[310922578,1704821440810,-2000.0,0.0003007,2]
[310922579,1704821440820,-2000.0,0.0003008,2]
[310922580,1704821440829,-2000.0,0.0003009,2]
[310922581,1704821440956,-2000.0,0.000301,2]
[310922582,1704821440965,-2610.593237,0.0003011,2]
[310922583,1704821440975,-5000.0,0.00030137,2]
[310922584,1704821440984,-414.87912061,0.00030137,2]
[310922585,1704821440993,-155.0,0.00030137,2]
[310922586,1704821441003,-5000.0,0.00030244,2]
[310922587,1704821441013,-150.89437394,0.00030249,4]
[310922588,1704821441022,-1500.0,0.000304,2]
[310922589,1704821441031,-620.00113549,0.00030561,2]
[310922590,1704821441041,-164.33102645,0.00030584,4]
[310922591,1704821441050,-200.0,0.00030626,15]
[310922592,1704821441060,-150.89437394,0.00030866,2]
[310922593,1704821441070,-160.0,0.00030935,10]
[310922594,1704821441081,-62281.83764186,0.00030936,4]
[310922595,1704821441090,-56509.47665704,0.00030936,4]
[310922596,1704821441099,-50000.0,0.00030936,2]
[310922597,1704821441109,-50000.0,0.00030936,2]
[310922598,1704821441118,-50000.0,0.00030936,2]
[310922599,1704821441127,-50000.0,0.00030936,2]
[310922600,1704821441136,-50000.0,0.00030936,2]
[310922601,1704821441146,-50000.0,0.00030936,2]
[310922602,1704821441155,-50000.0,0.00030936,2]
[310922603,1704821441164,-89238.44125484,0.00030936,2]
[310922604,1704821441173,-8142.46825978,0.00030936,3]
[310922605,1704821441183,-94406.41821397,0.00031,4]
[310922606,1704821441191,-166.78944766,0.00031,4]
[310922607,1704821441200,-160.0,0.00031347,10]
[310922608,1704821441209,-276000.0,0.00031348,2]
[310922609,1704821441219,-1739.475306,0.00031348,2]
[310922610,1704821441228,-1739.475306,0.00031348,2]
[310922611,1704821441239,-210.640692,0.00031348,2]
[310922612,1704821441249,-210.640692,0.00031348,2]
[310922613,1704821441258,-327.373269,0.00031348,2]
[310922614,1704821441267,-327.373269,0.00031348,2]
[310922615,1704821441276,-155.157627,0.00031348,2]
[310922616,1704821441285,-1500.0,0.000314,2]
[310922617,1704821441294,-308.47955221,0.00031468,4]
[310922618,1704821441303,-155.0,0.00031507,2]
[310922619,1704821441313,-680.81316922,0.000318,3]
[310922620,1704821441323,-868.9759266,0.00032,2]
[310922621,1704821441332,-868.9759266,0.00032,2]
[310922622,1704821441341,-868.9759266,0.00032,2]
[310922623,1704821441351,-868.9759266,0.00032,2]
[310922624,1704821441362,-868.9759266,0.00032,2]
[310922625,1704821441372,-868.9759266,0.00032,2]
[310922626,1704821441383,-868.9759266,0.00032,2]
[310922627,1704821441393,-868.9759266,0.00032,2]
[310922628,1704821441404,-868.9759266,0.00032,2]
[310922629,1704821441414,-868.9759266,0.00032,2]
[310922631,1704821441423,-620.00005677,0.00032089,2]
[310922632,1704821441433,-151.0,0.00032155,2]
[310922633,1704821441442,-1500.0,0.000324,2]
[310922634,1704821441451,-200.44,0.000325,4]
[310922635,1704821441460,-8000.0,0.000325,14]
[310922636,1704821441469,-152.38900235,0.00032673,7]
[310922637,1704821441478,-242.92345092,0.00032688,7]
[310922638,1704821441487,-659.06311478,0.00032844,7]
[310922639,1704821441496,-177.585719,0.00032847,2]
[310922640,1704821441505,-179.999881,0.00032847,2]
[310922641,1704821441515,-212.25915,0.00032847,2]
[310922642,1704821441523,-500.0,0.00032876,7]
[310922643,1704821441533,-399.21511256,0.00032876,7]
[310922644,1704821441543,-500.0,0.00032876,7]
[310922645,1704821441554,-500.0,0.00032876,7]
[310922646,1704821441565,-420.06530393,0.00032876,7]
[310922647,1704821441575,-500.0,0.00032876,7]
[310922648,1704821441587,-234.96897518,0.00032876,7]
[310922649,1704821441598,-281.61145823,0.00032876,7]
[310922650,1704821441608,-500.0,0.00032876,7]
[310922651,1704821441619,-500.0,0.00032876,7]
[310922652,1704821441629,-199.40270498,0.00032876,7]
[310922653,1704821441640,-610.819366,0.00032876,7]
[310922654,1704821441657,-576.09024577,0.00032876,7]
[310922655,1704821441668,-500.0,0.00032876,7]
[310922656,1704821441678,-500.0,0.00032876,7]
[310922657,1704821441694,-500.0,0.00032876,7]
[310922658,1704821441705,-492.40889399,0.00032876,7]
[310922659,1704821441715,-500.0,0.00032876,7]
[310922660,1704821441725,-415.00247253,0.00032876,7]
[310922661,1704821441735,-380.21508475,0.00032876,7]
[310922662,1704821441745,-360.82913453,0.00032876,7]
[310922663,1704821441755,-211.10435062,0.00032876,7]
[310922664,1704821441766,-613.37686928,0.00032876,7]
[310922665,1704821441776,-500.0,0.00032876,7]
[310922666,1704821441786,-500.0,0.00032876,7]
[310922667,1704821441796,-489.97931679,0.00032876,7]
[310922668,1704821441807,-244.58161851,0.00032876,7]
[310922669,1704821441818,-550.72683051,0.00032876,7]
[310922670,1704821441828,-500.0,0.00032876,7]
[310922671,1704821441839,-500.0,0.00032876,7]
[310922672,1704821441849,-500.0,0.00032876,7]
[310922673,1704821441858,-161.60592932,0.00032876,7]
[310922674,1704821441868,-500.0,0.00032876,7]
[310922675,1704821441877,-258.57852066,0.00032876,7]
[310922676,1704821441887,-199.40270498,0.00032876,7]
[310922677,1704821441903,-155.0,0.00032877,2]
[310922678,1704821441915,-154.41457912,0.00032908,7]
[310922679,1704821441924,-659.06311478,0.00032964,7]
[310922680,1704821441934,-10000.0,0.00032998,7]
[310922681,1704821441944,-155.26326361,0.00033,4]
[310922682,1704821441955,-659.06311478,0.00033022,7]
[310922683,1704821441964,-659.06311478,0.00033056,7]
[310922684,1704821441974,-154.41457912,0.00033094,7]
[310922685,1704821441983,-154.41457912,0.00033105,7]
[310922686,1704821441996,-154.41457912,0.00033113,7]
[310922687,1704821442006,-659.06311478,0.00033191,7]
[310922688,1704821442015,-665.57477496,0.000332,2]
[310922689,1704821442025,-152.38900235,0.00033228,7]
[310922690,1704821442035,-212.25915,0.00033257,2]
[310922691,1704821442045,-152.38900235,0.00033273,7]
[310922692,1704821442054,-659.06311478,0.00033331,7]
[310922693,1704821442064,-151.0,0.00033375,2]
[310922694,1704821442074,-179.999881,0.00033394,2]
[310922695,1704821442083,-1500.0,0.000334,2]
[310922696,1704821442093,-659.06311478,0.0003341,7]
[310922697,1704821442102,-659.06311478,0.00033429,7]
[310922698,1704821442111,-659.06311478,0.0003346,7]
[310922699,1704821442120,-15288.87742,0.00033493,3]
[310922700,1704821442130,-5000.0,0.00033494,2]
[310922701,1704821442139,-659.06311478,0.00033501,7]
[310922702,1704821442151,-659.06311478,0.00033504,7]
[310922703,1704821442160,-152.38900235,0.00033528,7]
[310922704,1704821442169,-152.38900235,0.00033539,7]
[310922705,1704821442178,-152.38900235,0.00033629,7]
[310922706,1704821442188,-500.0,0.00033661,2]
[310922707,1704821442198,-500.0,0.00033661,2]
[310922708,1704821442207,-212.25915,0.00033668,2]
[310922709,1704821442217,-620.00000284,0.00033694,2]
[310922710,1704821442226,-6030.63078151,0.00033705,7]
[310922711,1704821442236,-659.06311478,0.00033737,7]
[310922712,1704821442245,-659.06311478,0.00033759,7]
[310922713,1704821442255,-152.38900235,0.00033763,7]
[310922714,1704821442264,-154.41457912,0.00033794,7]
[310922715,1704821442273,-659.06311478,0.00033889,7]
[310922716,1704821442282,-659.06311478,0.00033923,7]
[310922717,1704821442291,-179.999881,0.00033942,2]
[310922718,1704821442300,-659.06311478,0.0003396,7]
[310922719,1704821442309,-154.41457912,0.00033965,7]
[310922720,1704821442318,-1000.0,0.00034,7]
[310922721,1704821442328,-500.0,0.00034,7]
[310922722,1704821442338,-659.06311478,0.00034046,7]
[310922723,1704821442347,-152.38900235,0.00034068,7]
[310922724,1704821442356,-212.25915,0.00034078,2]
[310922725,1704821442366,-659.06311478,0.00034104,7]
[310922726,1704821442375,-223.565,0.00034191,4]
[310922727,1704821442385,-223.565,0.00034191,4]
[310922728,1704821442394,-223.566,0.00034191,4]
[310922729,1704821442408,-223.565,0.00034191,4]
[310922730,1704821442417,-223.566,0.00034191,4]
[310922731,1704821442426,-659.06311478,0.00034228,7]
[310922732,1704821442435,-156.1230049,0.00034247,2]
[310922733,1704821442444,-659.06311478,0.0003427,7]
[310922734,1704821442453,-659.06311478,0.00034283,7]
[310922735,1704821442462,-150.89437394,0.00034295,2]
[310922736,1704821442471,-250.31565904,0.00034295,2]
[310922737,1704821442480,-152.38900235,0.0003436,7]
[310922738,1704821442488,-659.06311478,0.00034394,7]
[310922739,1704821442498,-5000.0,0.00034421,7]
[310922740,1704821442509,-5000.0,0.00034421,7]
[310922741,1704821442518,-212.25915,0.00034489,2]
[310922742,1704821442528,-177.585719,0.00034489,2]
[310922743,1704821442537,-179.999881,0.00034489,2]
[310922744,1704821442546,-152.38900235,0.00034495,7]
[310922745,1704821442555,-13632.10155416,0.00034508,5]
[310922746,1704821442565,-4000.0,0.00034521,2]
[310922747,1704821442575,-154.41457912,0.00034525,7]
[310922748,1704821442584,-151.0,0.00034595,2]
[310922749,1704821442594,-152.38900235,0.00034625,7]
[310922750,1704821442603,-659.06311478,0.00034688,7]
[310922751,1704821442612,-168.08,0.000347,2]
[310922752,1704821442621,-168.08,0.000347,2]
[310922753,1704821442631,-168.08,0.000347,2]
[310922754,1704821442640,-168.08,0.000347,2]
[310922755,1704821442652,-168.08,0.000347,2]
[310922756,1704821442662,-168.08,0.000347,2]
[310922757,1704821442671,-168.08,0.000347,2]
[310922758,1704821442680,-168.08,0.000347,2]
[310922759,1704821442690,-168.08,0.000347,2]
[310922760,1704821442699,-168.08,0.000347,2]
[310922761,1704821442708,-168.08,0.000347,2]
[310922762,1704821442717,-168.08,0.000347,2]
[310922763,1704821442727,-168.08,0.000347,2]
[310922764,1704821442736,-168.08,0.000347,2]
[310922765,1704821442745,-168.08,0.000347,2]
[310922766,1704821442754,-168.08,0.000347,2]
[310922767,1704821442764,-168.08,0.000347,2]
[310922768,1704821442773,-168.08,0.000347,2]
[310922769,1704821442782,-168.08,0.000347,2]
[310922770,1704821442792,-168.08,0.000347,2]
[310922771,1704821442800,-152.38900235,0.00034725,7]
[310922772,1704821442810,-659.06311478,0.00034828,7]
[310922773,1704821442819,-154.41457912,0.00034858,7]
[310922774,1704821442828,-659.06311478,0.0003486,7]
[310922775,1704821442838,-301.78874788,0.00034872,4]
[310922776,1704821442847,-50000.0,0.00034894,7]
[310922777,1704821442856,-154.90705577,0.000349,2]
[310922778,1704821442866,-242.25670695,0.000349,30]
[310922779,1704821442876,-816.453,0.00034904,4]
[310922780,1704821442886,-816.453,0.00034904,4]
[310922781,1704821442897,-816.453,0.00034904,4]
[310922782,1704821442906,-816.453,0.00034904,4]
[310922783,1704821442915,-816.454,0.00034904,4]
[310922784,1704821442925,-5000.0,0.00034934,7]
[310922785,1704821442934,-152.38900235,0.00034942,7]
[310922786,1704821442943,-24140.18610249,0.0003498,14]
[310922787,1704821442952,-290.09823479,0.00035,4]
[310922788,1704821442962,-6802.96007234,0.00035,4]
[310922789,1704821442971,-7803.1787706,0.00035,4]
[310922790,1704821442980,-283.822248,0.00035,7]
[310922791,1704821442989,-7503.56939095,0.00035,45]
[310922792,1704821442999,-1596.96171091,0.00035,7]
[310922793,1704821443008,-592.64784145,0.00035,2]
[310922794,1704821443025,-3042.83244916,0.00035,2]
[310922795,1704821443039,-332.52969855,0.00035,4]
[310922796,1704821443049,-154.92922707,0.00035,2]
[310922797,1704821443059,-772.94490574,0.00035,14]
[310922798,1704821443068,-500.0,0.00035,7]
[310922799,1704821443078,-200.0,0.00035,7]
[310922800,1704821443087,-5017.63886717,0.00035,30]
[310922801,1704821443097,-9999.999999,0.00035016,30]
[310922802,1704821443106,-152.38900235,0.00035071,7]
[310922804,1704821443115,-157.01361898,0.00035077,2]
[310922807,1704821443125,-157.01361898,0.00035077,2]
[310922809,1704821443135,-157.01361898,0.00035077,2]
[310922810,1704821443144,-152.38900235,0.00035159,7]
[310922813,1704821443156,-659.06311478,0.00035171,7]
[310922815,1704821443166,-659.06311478,0.00035226,7]
[310922817,1704821443175,-1000.0,0.00035245,2]
[310922818,1704821443185,-1000.0,0.00035246,2]
[310922821,1704821443194,-1000.0,0.00035246,2]
[310922823,1704821443204,-1000.0,0.00035248,2]
[310922825,1704821443213,-863.71399629,0.00035257,2]
[310922827,1704821443222,-1000.0,0.0003526,2]
[310922830,1704821443231,-500.0,0.00035263,2]
[310922832,1704821443241,-1000.0,0.00035264,2]
[310922838,1704821443250,-1000.0,0.00035264,2]
[310922843,1704821443259,-1000.0,0.00035279,2]
[310922848,1704821443268,-1000.0,0.00035288,2]
[310922852,1704821443277,-152.38900235,0.00035289,7]
[310922856,1704821443287,-1000.0,0.00035332,2]
[310922859,1704821443297,-1000.0,0.0003534,2]
[310922862,1704821443307,-1000.0,0.00035361,2]
[310922865,1704821443316,-620.00000014,0.00035379,2]
[310922868,1704821443325,-394.42177439,0.00035407,2]
[310922871,1704821443334,-1000.0,0.0003542,2]
[310922874,1704821443344,-1000.0,0.00035423,2]
[310922877,1704821443353,-1000.0,0.00035425,2]
[310922879,1704821443363,-154.41457912,0.00035435,7]
[310922881,1704821443372,-231.8455,0.00035438,2]
[310922884,1704821443381,-603.57749575,0.00035458,7]
[310922887,1704821443391,-1000.0,0.00035459,2]
[310922888,1704821443403,-1000.0,0.00035465,2]
[310922891,1704821443412,-659.06311478,0.00035465,7]
[310922893,1704821443422,-1000.0,0.00035466,2]
[310922895,1704821443431,-327.373269,0.00035466,2]
[310922896,1704821443440,-327.373269,0.00035466,2]
[310922899,1704821443449,-56870.87187673,0.00035468,7]
[310922901,1704821443459,-1000.0,0.00035495,2]
[310922903,1704821443468,-214.20599387,0.00035495,2]
[310922905,1704821443478,-301.0,0.00035496,2]
[310922907,1704821443487,-47058.90272354,0.000355,14]
[310922909,1704821443497,-1739.475306,0.000355,2]
[310922910,1704821443506,-1739.475306,0.000355,2]
[310922913,1704821443515,-210.640692,0.000355,2]
[310922929,1704821443525,-210.640692,0.000355,2]
[310922931,1704821443669,-152.38900235,0.00035566,7]
[310922933,1704821443679,-659.06311478,0.00035596,7]
[310922935,1704821443688,-163.305352,0.000356,2]
[310922938,1704821443697,-156.08945156,0.00035601,6]
[310922941,1704821443705,-341.1072815,0.00035611,4]
[310922943,1704821443714,-300.0,0.00035611,2]
[310922946,1704821443722,-2484.59703634,0.00035614,2]
[310922949,1704821443731,-3733.02964435,0.00035614,4]
[310922951,1704821443740,-219.51741057,0.00035614,4]
[310922954,1704821443749,-273.56971879,0.00035614,4]
[310922957,1704821443759,-154.92253564,0.00035614,4]
[310922960,1704821443768,-167.46226827,0.00035615,10]
[310922963,1704821443777,-218.00692473,0.00035615,10]
[310922966,1704821443786,-2842.75914276,0.00035615,4]
[310922969,1704821443795,-298.86404899,0.00035615,4]
[310922972,1704821443804,-107185.16248081,0.00035615,4]
[310922974,1704821443813,-327.373269,0.00035615,2]
[310922977,1704821443822,-327.373269,0.00035615,2]
[310922979,1704821443832,-305.823861,0.00035616,4]
[310922982,1704821443842,-1739.475306,0.00035616,2]
[310922983,1704821443851,-1739.475306,0.00035616,2]
[310922987,1704821443861,-1739.475306,0.00035616,2]
[310922990,1704821443871,-1739.475306,0.00035616,2]
[310922993,1704821443881,-210.640692,0.00035616,2]
[310922996,1704821443891,-210.640692,0.00035616,2]
[310922999,1704821443902,-210.640692,0.00035616,2]
[310923001,1704821443914,-210.640692,0.00035616,2]
[310923004,1704821443923,-327.373269,0.00035616,2]
[310923007,1704821443933,-327.373269,0.00035616,2]
[310923010,1704821443943,-154.90705577,0.00035616,4]
[310923013,1704821443953,-2447.20731288,0.00035616,2]
[310923016,1704821443963,-649.46848965,0.00035616,4]
[310923019,1704821443973,-1025.4344042,0.00035616,2]
[310923022,1704821443982,-200.0,0.00035616,2]
[310923025,1704821443993,-4039.92201284,0.00035616,4]
[310923028,1704821444003,-300.0,0.00035616,4]
[310923031,1704821444013,-2793.4776162,0.00035616,4]
[310923034,1704821444023,-282.50801309,0.00035616,3]
[310923037,1704821444033,-154.90705577,0.00035616,4]
[310923040,1704821444042,-194.7524305,0.00035616,4]
[310923042,1704821444051,-500.0,0.00035616,2]
[310923044,1704821444061,-314.76144495,0.00035616,2]
[310923046,1704821444070,-500.86593983,0.00035616,2]
[310923048,1704821444081,-500.0,0.00035616,2]
[310923050,1704821444090,-500.0,0.00035616,2]
[310923052,1704821444099,-500.0,0.00035616,2]
[310923054,1704821444108,-500.0,0.00035616,2]
[310923056,1704821444117,-500.0,0.00035616,2]
[310923058,1704821444125,-500.0,0.00035616,2]
[310923060,1704821444134,-501.30944733,0.00035616,2]
[310923061,1704821444143,-500.0,0.00035616,2]
[310923063,1704821444154,-500.69611721,0.00035616,2]
[310923066,1704821444164,-500.0,0.00035616,2]
[310923067,1704821444173,-520.33022276,0.00035616,2]
[310923069,1704821444184,-500.0,0.00035616,2]
[310923071,1704821444193,-500.00988812,0.00035616,2]
[310923073,1704821444203,-500.0,0.00035616,2]
[310923075,1704821444212,-500.0,0.00035616,2]
[310923077,1704821444222,-500.0,0.00035616,2]
[310923079,1704821444232,-500.0,0.00035616,2]
[310923081,1704821444242,-501.4790848,0.00035616,2]
[310923082,1704821444251,-837.95,0.00035616,2]
[310923084,1704821444260,-500.0,0.00035616,2]
[310923086,1704821444270,-504.43281686,0.00035616,2]
[310923088,1704821444279,-517.86667267,0.00035616,2]
[310923089,1704821444288,-500.0,0.00035616,2]
[310923091,1704821444297,-500.0,0.00035616,2]